{"text_format":"1","workbook":"xlsx","n_sheets":4,"sheets":["地図","冒険の書","使い方マニュアル","DATA"],"not_rendered":{"charts":0,"images":60,"macros":1,"external_links":0,"defined_names":24,"comments":2,"pivot_tables":0},"unopened":[],"bounds":{"document_bytes":16777216,"sheet_cells":100000,"rows_first":2000,"rows_last":500,"rows_between":2000,"halvings":0,"cell_chars":16384,"cell_head_chars":4096},"cells_cut":0,"cells_raw":0,"read":"whole","date_system":"1900"}

{"sheet":"地図","index":0,"n_rows":48,"n_cols":93,"rows_kept":48,"cut":false,"hidden":false,"merged":[[37,26,37,27],[37,22,37,24],[39,5,41,17],[5,1,6,17],[4,6,4,17],[4,1,4,5],[8,1,10,8],[7,1,7,8],[7,10,7,17],[36,6,37,7],[8,16,9,17],[8,10,9,11],[8,12,8,15],[36,22,36,25],[34,22,34,25],[35,22,35,25],[1,16,2,17],[1,1,2,2],[3,30,3,33],[4,30,4,33],[5,30,5,33],[2,30,2,33],[3,27,3,29],[2,22,5,25],[21,22,21,25],[6,22,6,29],[2,27,2,29],[4,27,4,29],[5,27,5,29],[7,22,7,29],[21,26,21,28],[8,22,8,27],[8,28,8,33],[9,22,10,27],[9,28,10,33],[6,30,6,33],[7,30,7,33],[21,30,21,33],[25,28,26,33],[27,28,27,33],[29,28,29,33],[23,22,23,26],[33,26,33,27],[32,26,32,27],[33,22,33,25],[32,22,32,25],[29,22,29,27],[25,22,27,27],[36,28,36,31],[34,26,34,27],[35,26,35,27],[36,26,36,27],[36,32,36,33],[31,32,31,33],[31,29,31,30],[33,32,33,33],[32,32,32,33],[33,28,33,31],[32,28,32,31],[31,27,31,28],[34,28,34,31],[35,28,35,31],[34,32,34,33],[35,32,35,33],[2,37,5,40],[2,42,2,44],[2,45,2,48],[3,42,3,44],[3,45,3,48],[4,42,4,44],[4,45,4,48],[5,42,5,44],[5,45,5,48],[9,37,10,42],[9,43,10,48],[21,37,21,40],[21,41,21,43],[21,45,21,48],[6,37,6,44],[6,45,6,48],[7,37,7,44],[7,45,7,48],[8,37,8,42],[8,43,8,48],[31,42,31,43],[31,44,31,45],[31,47,31,48],[32,37,32,40],[32,41,32,42],[32,43,32,46],[32,47,32,48],[23,37,23,41],[25,37,27,42],[25,43,26,48],[27,43,27,48],[29,37,29,42],[29,43,29,48],[35,37,35,40],[35,41,35,42],[35,43,35,46],[35,47,35,48],[36,37,36,40],[36,41,36,42],[36,43,36,46],[36,47,36,48],[33,37,33,40],[33,41,33,42],[33,43,33,46],[33,47,33,48],[34,37,34,40],[34,41,34,42],[34,43,34,46],[34,47,34,48],[2,52,5,55],[2,57,2,59],[2,60,2,63],[3,57,3,59],[3,60,3,63],[4,57,4,59],[4,60,4,63],[5,57,5,59],[5,60,5,63],[6,52,6,59],[6,60,6,63],[7,52,7,59],[7,60,7,63],[8,52,8,57],[8,58,8,63],[9,52,10,57],[9,58,10,63],[21,52,21,55],[21,56,21,58],[21,60,21,63],[15,58,15,59],[15,61,15,63],[16,58,16,59],[16,61,16,63],[23,52,23,56],[25,52,27,57],[25,58,26,63],[27,58,27,63],[29,52,29,57],[29,58,29,63],[31,57,31,58],[31,59,31,60],[31,62,31,63],[32,52,32,55],[32,56,32,57],[32,58,32,61],[32,62,32,63],[33,52,33,55],[33,56,33,57],[33,58,33,61],[33,62,33,63],[34,52,34,55],[34,56,34,57],[34,58,34,61],[34,62,34,63],[35,52,35,55],[35,56,35,57],[35,58,35,61],[35,62,35,63],[36,52,36,55],[36,56,36,57],[36,58,36,61],[36,62,36,63],[2,67,5,70],[7,67,7,74],[25,67,27,72],[25,73,26,78],[27,73,27,78],[29,67,29,72],[29,73,29,78],[31,72,31,73],[31,74,31,75],[31,77,31,78],[32,67,32,70],[32,71,32,72],[32,73,32,76],[32,77,32,78],[33,67,33,70],[33,71,33,72],[2,72,2,74],[2,75,2,78],[3,72,3,74],[3,75,3,78],[4,72,4,74],[4,75,4,78],[5,72,5,74],[5,75,5,78],[6,67,6,74],[6,75,6,78],[7,75,7,78],[8,67,8,72],[8,73,8,78],[9,67,10,72],[9,73,10,78],[21,67,21,70],[21,71,21,73],[21,75,21,78],[23,67,23,71],[13,73,13,74],[13,76,13,78],[14,73,14,74],[14,76,14,78],[15,73,15,74],[15,76,15,78],[16,73,16,74],[16,76,16,78],[33,73,33,76],[33,77,33,78],[34,67,34,70],[34,71,34,72],[34,73,34,76],[34,77,34,78],[35,67,35,70],[35,71,35,72],[35,73,35,76],[35,77,35,78],[36,67,36,70],[36,71,36,72],[36,73,36,76],[36,77,36,78],[2,82,5,85],[2,87,2,89],[2,90,2,93],[3,87,3,89],[3,90,3,93],[4,87,4,89],[4,90,4,93],[5,87,5,89],[5,90,5,93],[6,82,6,89],[6,90,6,93],[7,82,7,89],[7,90,7,93],[8,82,8,87],[8,88,8,93],[9,82,10,87],[9,88,10,93],[21,82,21,85],[21,86,21,88],[21,90,21,93],[23,82,23,86],[25,82,27,87],[25,88,26,93],[27,88,27,93],[29,82,29,87],[29,88,29,93],[31,87,31,88],[31,89,31,90],[31,92,31,93],[35,82,35,85],[35,86,35,87],[35,88,35,91],[35,92,35,93],[36,82,36,85],[36,86,36,87],[36,88,36,91],[36,92,36,93],[32,82,32,85],[32,86,32,87],[32,88,32,91],[32,92,32,93],[33,82,33,85],[33,86,33,87],[33,88,33,91],[33,92,33,93],[34,82,34,85],[34,86,34,87],[34,88,34,91],[34,92,34,93],[37,37,37,39],[37,41,37,42],[37,52,37,54],[37,56,37,57],[37,67,37,69],[37,71,37,72],[37,82,37,84],[37,86,37,87],[17,22,17,27],[17,28,17,33],[18,22,19,27],[18,28,19,33],[17,37,17,42],[17,43,17,48],[18,37,19,42],[18,43,19,48],[17,52,17,57],[17,58,17,63],[18,52,19,57],[18,58,19,63],[17,67,17,72],[17,73,17,78],[18,67,19,72],[18,73,19,78],[18,82,19,87],[18,88,19,93],[13,28,13,29],[14,28,14,29],[15,28,15,29],[16,28,16,29],[13,31,13,33],[14,31,14,33],[15,31,15,33],[16,31,16,33],[13,43,13,44],[13,46,13,48],[14,43,14,44],[14,46,14,48],[15,43,15,44],[15,46,15,48],[16,43,16,44],[16,46,16,48],[13,58,13,59],[13,61,13,63],[14,58,14,59],[14,61,14,63],[13,88,13,89],[13,91,13,93],[14,88,14,89],[14,91,14,93],[15,88,15,89],[15,91,15,93],[16,88,16,89],[16,91,16,93],[17,82,17,87],[17,88,17,93]]}
[]
[]
[null,null,null,null,null,null,null,null,null,null,null,null,null,null,null,null,null,null,null,null,null,null,null,null,null,null,null,"なまえ",null,null,null,null,null,null,null,null,null,null,null,null,null,null,"なまえ",null,null,null,null,null,null,null,null,null,null,null,null,null,null,"なまえ",null,null,null,null,null,null,null,null,null,null,null,null,null,null,"なまえ",null,null,null,null,null,null,null,null,null,null,null,null,null,null,"なまえ"]
[null,null,null,null,null,null,null,null,null,null,null,null,null,null,null,null,null,null,null,null,null,null,null,null,null,null,null,"やくわり",null,null,"せんし",null,null,null,null,null,null,null,null,null,null,null,"やくわり",null,null,"非表示",null,null,null,null,null,null,null,null,null,null,null,"やくわり",null,null,"非表示",null,null,null,null,null,null,null,null,null,null,null,"やくわり",null,null,"非表示",null,null,null,null,null,null,null,null,null,null,null,"やくわり",null,null,"非表示"]
[null,"今回のクエスト→",null,null,null,null,"7：通常",null,null,null,null,null,null,null,null,null,null,null,null,null,null,null,null,null,null,null,null,"レベル",null,null,1,null,null,null,null,null,null,null,null,null,null,null,"レベル",null,null,1,null,null,null,null,null,null,null,null,null,null,null,"レベル",null,null,1,null,null,null,null,null,null,null,null,null,null,null,"レベル",null,null,1,null,null,null,null,null,null,null,null,null,null,null,"レベル",null,null,1]
[null,{"$f":"VLOOKUP(G5,DATA!R18:S28,2,0)","v":"自由に探索します （但し、３マス以上進むことが条件です）\n報酬：生還で１人あたり５  高評価：なし"},null,null,null,null,null,null,null,null,null,null,null,null,null,null,null,null,null,null,null,null,null,null,null,null,null,"たいりょく",null,null,{"$f":"IF(AE4=\"せんし\",AE5*4+16,AE5*3+12)","v":20},null,null,null,null,null,null,null,null,null,null,null,"たいりょく",null,null,{"$f":"IF(AT4=\"せんし\",AT5*4+16,AT5*3+12)","v":15},null,null,null,null,null,null,null,null,null,null,null,"たいりょく",null,null,{"$f":"IF(BI4=\"せんし\",BI5*4+16,BI5*3+12)","v":15},null,null,null,null,null,null,null,null,null,null,null,"たいりょく",null,null,{"$f":"IF(BX4=\"せんし\",BX5*4+16,BX5*3+12)","v":15},null,null,null,null,null,null,null,null,null,null,null,"たいりょく",null,null,{"$f":"IF(CM4=\"せんし\",CM5*4+16,CM5*3+12)","v":15}]
[null,null,null,null,null,null,null,null,null,null,null,null,null,null,null,null,null,null,null,null,null,null,"装備で増えた たいりょく",null,null,null,null,null,null,null,0,null,null,null,null,null,null,"装備で増えた たいりょく",null,null,null,null,null,null,null,0,null,null,null,null,null,null,"装備で増えた たいりょく",null,null,null,null,null,null,null,0,null,null,null,null,null,null,"装備で増えた たいりょく",null,null,null,null,null,null,null,0,null,null,null,null,null,null,"装備で増えた たいりょく",null,null,null,null,null,null,null,0]
[null,"危険な冒険",null,null,null,null,null,null,null,null,"モンスター",null,null,null,null,null,null,null,null,null,null,null,"合計たいりょく",null,null,null,null,null,null,null,{"$f":"AE6+AE7","v":20},null,null,null,null,null,null,"合計たいりょく",null,null,null,null,null,null,null,{"$f":"AT6+AT7","v":15},null,null,null,null,null,null,"合計たいりょく",null,null,null,null,null,null,null,{"$f":"BI6+BI7","v":15},null,null,null,null,null,null,"合計たいりょく",null,null,null,null,null,null,null,{"$f":"BX6+BX7","v":15},null,null,null,null,null,null,"合計たいりょく",null,null,null,null,null,null,null,{"$f":"CM6+CM7","v":15}]
[null,"０：設定なし（通常の冒険）",null,null,null,null,null,null,null,null,null,null,"なし",null,null,null,0,null,null,null,null,null,"受けたダメージ",null,null,null,null,null,"けいけん",null,null,null,null,null,null,null,null,"受けたダメージ",null,null,null,null,null,"けいけん",null,null,null,null,null,null,null,null,"受けたダメージ",null,null,null,null,null,"けいけん",null,null,null,null,null,null,null,null,"受けたダメージ",null,null,null,null,null,"けいけん",null,null,null,null,null,null,null,null,"受けたダメージ",null,null,null,null,null,"けいけん"]
[null,null,null,null,null,null,null,null,null,null,null,null,"攻",{"$f":"VLOOKUP(M9,DATA!M17:P28,3,0)","v":0},"体",{"$f":"VLOOKUP(M9,DATA!M17:P28,4,0)","v":0},null,null,null,null,null,null,0,null,null,null,null,null,0,null,null,null,null,null,null,null,null,0,null,null,null,null,null,0,null,null,null,null,null,null,null,null,0,null,null,null,null,null,0,null,null,null,null,null,null,null,null,0,null,null,null,null,null,0,null,null,null,null,null,null,null,null,0,null,null,null,null,null,0]
[]
[]
[null,null,null,null,null,null,null,null,null,null,null,null,null,null,null,null,null,null,null,null,null,null,null,null,null,null,null,null,"最大値",null,null,"ダメージ",null,null,null,null,null,null,null,null,null,null,null,"最大値",null,null,"ダメージ",null,null,null,null,null,null,null,null,null,null,null,"最大値",null,null,"ダメージ",null,null,null,null,null,null,null,null,null,null,null,"最大値",null,null,"ダメージ",null,null,null,null,null,null,null,null,null,null,null,"最大値",null,null,"ダメージ"]
[null,null,null,null,null,null,null,null,null,null,null,null,null,null,null,null,null,null,null,null,null,null,null,null,null,null,null,"頭",{"$f":"ROUNDUP(AE8*0.2,0)","v":4},null,"/",null,null,null,null,null,null,null,null,null,null,null,"頭",{"$f":"ROUNDUP(AT8*0.2,0)","v":3},null,"/",null,null,null,null,null,null,null,null,null,null,null,"頭",{"$f":"ROUNDUP(BI8*0.2,0)","v":3},null,"/",null,null,null,null,null,null,null,null,null,null,null,"頭",{"$f":"ROUNDUP(BX8*0.2,0)","v":3},null,"/",null,null,null,null,null,null,null,null,null,null,null,"頭",{"$f":"ROUNDUP(CM8*0.2,0)","v":3},null,"/"]
[null,null,null,null,null,null,null,null,null,null,null,null,null,null,null,null,null,null,null,null,null,null,null,null,null,null,null,"腕",{"$f":"ROUNDUP(AE8*0.2,0)","v":4},null,"/",null,null,null,null,null,null,null,null,null,null,null,"腕",{"$f":"ROUNDUP(AT8*0.2,0)","v":3},null,"/",null,null,null,null,null,null,null,null,null,null,null,"腕",{"$f":"ROUNDUP(BI8*0.2,0)","v":3},null,"/",null,null,null,null,null,null,null,null,null,null,null,"腕",{"$f":"ROUNDUP(BX8*0.2,0)","v":3},null,"/",null,null,null,null,null,null,null,null,null,null,null,"腕",{"$f":"ROUNDUP(CM8*0.2,0)","v":3},null,"/"]
[null,null,null,null,null,null,null,null,null,null,null,null,null,null,null,null,null,null,null,null,null,null,null,null,null,null,null,"足",{"$f":"ROUNDUP(AE8*0.2,0)","v":4},null,"/",null,null,null,null,null,null,null,null,null,null,null,"足",{"$f":"ROUNDUP(AT8*0.2,0)","v":3},null,"/",null,null,null,null,null,null,null,null,null,null,null,"足",{"$f":"ROUNDUP(BI8*0.2,0)","v":3},null,"/",null,null,null,null,null,null,null,null,null,null,null,"足",{"$f":"ROUNDUP(BX8*0.2,0)","v":3},null,"/",null,null,null,null,null,null,null,null,null,null,null,"足",{"$f":"ROUNDUP(CM8*0.2,0)","v":3},null,"/"]
[null,null,null,null,null,null,null,null,null,null,null,null,null,null,null,null,null,null,null,null,null,null,null,null,null,null,null,"体",{"$f":"ROUNDUP(AE8*0.3,0)","v":6},null,"/",null,null,null,null,null,null,null,null,null,null,null,"体",{"$f":"ROUNDUP(AT8*0.3,0)","v":5},null,"/",null,null,null,null,null,null,null,null,null,null,null,"体",{"$f":"ROUNDUP(BI8*0.3,0)","v":5},null,"/",null,null,null,null,null,null,null,null,null,null,null,"体",{"$f":"ROUNDUP(BX8*0.3,0)","v":5},null,"/",null,null,null,null,null,null,null,null,null,null,null,"体",{"$f":"ROUNDUP(CM8*0.3,0)","v":5},null,"/"]
[null,null,null,null,null,null,null,null,null,null,null,null,null,null,null,null,null,null,null,null,null,null,"空腹度",null,null,null,null,null,"疲労度",null,null,null,null,null,null,null,null,"空腹度",null,null,null,null,null,"疲労度",null,null,null,null,null,null,null,null,"空腹度",null,null,null,null,null,"疲労度",null,null,null,null,null,null,null,null,"空腹度",null,null,null,null,null,"疲労度",null,null,null,null,null,null,null,null,"空腹度",null,null,null,null,null,"疲労度"]
[null,null,null,null,null,null,null,null,null,null,null,null,null,null,null,null,null,null,null,null,null,null,0,null,null,null,null,null,0,null,null,null,null,null,null,null,null,0,null,null,null,null,null,0,null,null,null,null,null,null,null,null,0,null,null,null,null,null,0,null,null,null,null,null,null,null,null,0,null,null,null,null,null,0,null,null,null,null,null,null,null,null,0,null,null,null,null,null,0]
[]
[null,null,null,null,null,null,null,null,null,null,null,null,null,null,null,null,null,null,null,null,null,null,"とくぎ",null,null,null,null,null,null,null,null,null,null,null,null,null,null,"とくぎ",null,null,null,null,null,null,null,null,null,null,null,null,null,null,"とくぎ",null,null,null,null,null,null,null,null,null,null,null,null,null,null,"とくぎ",null,null,null,null,null,null,null,null,null,null,null,null,null,null,"とくぎ"]
[null,null,null,null,null,null,null,null,null,null,null,null,null,null,null,null,null,null,null,null,null,null,{"$f":"IF(AE4=\"かりうど\",\"えんごこうげき2\",\"えんごこうげき1\")","v":"えんごこうげき1"},null,null,null,{"$f":"IF(AE4=\"そうりょ\",\"かいふく\",IF(AE4=\"まほうつかい\",\"まほう\",IF(AE4=\"にんじゃ\",\"かぎあけ\",IF(AE4=\"かりうど\",\"おたから\",IF(AE5>=5,\"かいりき\",\"\")))))","v":""},null,null,{"$f":"IF(AE4=\"せんし\",\"\",IF(AE5>=5,2,1))","v":""},{"$f":"IF(AE4=\"にんじゃ\",\"おたから1\",\"\")","v":""},null,null,null,null,null,null,{"$f":"IF(AT4=\"かりうど\",\"えんごこうげき2\",\"えんごこうげき1\")","v":"えんごこうげき1"},null,null,null,{"$f":"IF(AT4=\"そうりょ\",\"かいふく\",IF(AT4=\"まほうつかい\",\"まほう\",IF(AT4=\"にんじゃ\",\"かぎあけ\",IF(AT4=\"かりうど\",\"おたから\",IF(AT5>=5,\"かいりき\",\"\")))))","v":""},null,null,{"$f":"IF(AT4=\"せんし\",\"\",IF(AT5>=5,2,1))","v":1},{"$f":"IF(AT4=\"にんじゃ\",\"おたから1\",\"\")","v":""},null,null,null,null,null,null,{"$f":"IF(BI4=\"かりうど\",\"えんごこうげき2\",\"えんごこうげき1\")","v":"えんごこうげき1"},null,null,null,{"$f":"IF(BI4=\"そうりょ\",\"かいふく\",IF(BI4=\"まほうつかい\",\"まほう\",IF(BI4=\"にんじゃ\",\"かぎあけ\",IF(BI4=\"かりうど\",\"おたから\",IF(BI5>=5,\"かいりき\",\"\")))))","v":""},null,null,{"$f":"IF(BI4=\"せんし\",\"\",IF(BI5>=5,2,1))","v":1},{"$f":"IF(BI4=\"にんじゃ\",\"おたから1\",\"\")","v":""},null,null,null,null,null,null,{"$f":"IF(BX4=\"かりうど\",\"えんごこうげき2\",\"えんごこうげき1\")","v":"えんごこうげき1"},null,null,null,{"$f":"IF(BX4=\"そうりょ\",\"かいふく\",IF(BX4=\"まほうつかい\",\"まほう\",IF(BX4=\"にんじゃ\",\"かぎあけ\",IF(BX4=\"かりうど\",\"おたから\",IF(BX5>=5,\"かいりき\",\"\")))))","v":""},null,null,{"$f":"IF(BX4=\"せんし\",\"\",IF(BX5>=5,2,1))","v":1},{"$f":"IF(BX4=\"にんじゃ\",\"おたから1\",\"\")","v":""},null,null,null,null,null,null,{"$f":"IF(CM4=\"かりうど\",\"えんごこうげき2\",\"えんごこうげき1\")","v":"えんごこうげき1"},null,null,null,{"$f":"IF(CM4=\"そうりょ\",\"かいふく\",IF(CM4=\"まほうつかい\",\"まほう\",IF(CM4=\"にんじゃ\",\"かぎあけ\",IF(CM4=\"かりうど\",\"おたから\",IF(CM5>=5,\"かいりき\",\"\")))))","v":""},null,null,{"$f":"IF(CM4=\"せんし\",\"\",IF(CM5>=5,2,1))","v":1},{"$f":"IF(CM4=\"にんじゃ\",\"おたから1\",\"\")","v":""}]
[null,null,null,null,null,null,null,null,null,null,null,null,null,null,null,null,null,null,null,null,null,null,"特殊なとくぎ",null,null,null,null,null,null,null,null,null,null,null,null,null,null,"特殊なとくぎ",null,null,null,null,null,null,null,null,null,null,null,null,null,null,"特殊なとくぎ",null,null,null,null,null,null,null,null,null,null,null,null,null,null,"特殊なとくぎ",null,null,null,null,null,null,null,null,null,null,null,null,null,null,"特殊なとくぎ"]
[]
[null,null,null,null,null,null,null,null,null,null,null,null,null,null,null,null,null,null,null,null,null,null,"武器と効果",null,null,null,null,null,"防具と効果",null,null,null,null,null,null,null,null,"武器と効果",null,null,null,null,null,"防具と効果",null,null,null,null,null,null,null,null,"武器と効果",null,null,null,null,null,"防具と効果",null,null,null,null,null,null,null,null,"武器と効果",null,null,null,null,null,"防具と効果",null,null,null,null,null,null,null,null,"武器と効果",null,null,null,null,null,"防具と効果"]
[null,null,null,null,null,null,null,null,null,null,null,null,null,null,null,null,null,null,null,null,null,null,"素手",null,null,null,null,null,"防具なし",null,null,null,null,null,null,null,null,"素手",null,null,null,null,null,"防具なし",null,null,null,null,null,null,null,null,"素手",null,null,null,null,null,"防具なし",null,null,null,null,null,null,null,null,"素手",null,null,null,null,null,"防具なし",null,null,null,null,null,null,null,null,"素手",null,null,null,null,null,"防具なし"]
[]
[null,null,null,null,null,null,null,null,null,null,null,null,null,null,null,null,null,null,null,null,null,null,null,null,null,null,null,null,"盾なし",null,null,null,null,null,null,null,null,null,null,null,null,null,null,"盾なし",null,null,null,null,null,null,null,null,null,null,null,null,null,null,"盾なし",null,null,null,null,null,null,null,null,null,null,null,null,null,null,"盾なし",null,null,null,null,null,null,null,null,null,null,null,null,null,null,"盾なし"]
[null,null,null,null,null,null,null,null,null,null,null,null,null,null,null,null,null,null,null,null,null,null,"指輪",null,null,null,null,null,null,null,null,null,null,null,null,null,null,"指輪",null,null,null,null,null,null,null,null,null,null,null,null,null,null,"指輪",null,null,null,null,null,null,null,null,null,null,null,null,null,null,"指輪",null,null,null,null,null,null,null,null,null,null,null,null,null,null,"指輪"]
[null,null,null,null,null,null,null,null,null,null,null,null,null,null,null,null,null,null,null,null,null,null,"なし",null,null,null,null,null,"なし",null,null,null,null,null,null,null,null,"なし",null,null,null,null,null,"なし",null,null,null,null,null,null,null,null,"なし",null,null,null,null,null,"なし",null,null,null,null,null,null,null,null,"なし",null,null,null,null,null,"なし",null,null,null,null,null,null,null,null,"なし",null,null,null,null,null,"なし"]
[null,null,1,null,null,2,null,null,3,null,null,4,null,null,5,null,null,6]
[null,null,null,null,null,null,null,null,null,null,null,null,null,null,null,null,null,null,null,null,null,null,"もちもの",null,null,null,null,"重さ",null,{"$f":"AA33*1+AA34*3+AA35*3+AA36+AA37+AG33*5+AG34*5+AG35*3+AG36+AG37*10+AA38*5","v":0},null,"/",{"$f":"IF(AA22=\"かいりき\",120,100)","v":100},null,null,null,null,"もちもの",null,null,null,null,"重さ",null,{"$f":"AP33*1+AP34*3+AP35*3+AP36+AP37+AV33*5+AV34*5+AV35*3+AV36+AV37*10+AP38*5","v":0},null,"/",{"$f":"IF(AP22=\"かいりき\",120,100)","v":100},null,null,null,null,"もちもの",null,null,null,null,"重さ",null,{"$f":"BE33*1+BE34*3+BE35*3+BE36+BE37+BK33*5+BK34*5+BK35*3+BK36+BK37*10+BE38*5","v":0},null,"/",{"$f":"IF(BE22=\"かいりき\",120,100)","v":100},null,null,null,null,"もちもの",null,null,null,null,"重さ",null,{"$f":"BT33*1+BT34*3+BT35*3+BT36+BT37+BZ33*5+BZ34*5+BZ35*3+BZ36+BZ37*10+BT38*5","v":0},null,"/",{"$f":"IF(BT22=\"かいりき\",120,100)","v":100},null,null,null,null,"もちもの",null,null,null,null,"重さ",null,{"$f":"CI33*1+CI34*3+CI35*3+CI36+CI37+CO33*5+CO34*5+CO35*3+CO36+CO37*10+CI38*5","v":0},null,"/",{"$f":"IF(CI22=\"かいりき\",120,100)","v":100}]
[null,null,null,null,null,null,null,null,null,null,null,null,null,null,null,null,null,null,null,null,null,null,"金貨",null,null,null,0,null,"食料",null,null,null,0,null,null,null,null,"金貨",null,null,null,0,null,"食料",null,null,null,0,null,null,null,null,"金貨",null,null,null,0,null,"食料",null,null,null,0,null,null,null,null,"金貨",null,null,null,0,null,"食料",null,null,null,0,null,null,null,null,"金貨",null,null,null,0,null,"食料",null,null,null,0]
[null,null,null,null,null,null,null,null,null,null,null,null,null,null,null,null,null,null,null,null,null,null,"回復薬",null,null,null,0,null,"けむり玉",null,null,null,0,null,null,null,null,"回復薬",null,null,null,0,null,"けむり玉",null,null,null,0,null,null,null,null,"回復薬",null,null,null,0,null,"けむり玉",null,null,null,0,null,null,null,null,"回復薬",null,null,null,0,null,"けむり玉",null,null,null,0,null,null,null,null,"回復薬",null,null,null,0,null,"けむり玉",null,null,null,0]
[null,"※タイルはコピーしてお使いください",null,null,null,null,null,null,null,null,null,null,null,null,null,null,null,null,null,null,null,null,"たいまつ",null,null,null,0,null,"ちしきの本",null,null,null,0,null,null,null,null,"たいまつ",null,null,null,0,null,"ちしきの本",null,null,null,0,null,null,null,null,"たいまつ",null,null,null,0,null,"ちしきの本",null,null,null,0,null,null,null,null,"たいまつ",null,null,null,0,null,"ちしきの本",null,null,null,0,null,null,null,null,"たいまつ",null,null,null,0,null,"ちしきの本",null,null,null,0]
[null,null,null,null,null,null,null,null,null,null,null,null,null,null,null,null,null,null,null,null,null,null,"まほうの粉",null,null,null,0,null,"幸運の石",null,null,null,0,null,null,null,null,"まほうの粉",null,null,null,0,null,"幸運の石",null,null,null,0,null,null,null,null,"まほうの粉",null,null,null,0,null,"幸運の石",null,null,null,0,null,null,null,null,"まほうの粉",null,null,null,0,null,"幸運の石",null,null,null,0,null,null,null,null,"まほうの粉",null,null,null,0,null,"幸運の石",null,null,null,0]
[null,null,null,null,null,null,1,null,null,null,null,null,null,null,null,null,null,null,null,null,null,null,"宝石",null,null,null,0,null,"宝箱",null,null,null,0,null,null,null,null,"宝石",null,null,null,0,null,"宝箱",null,null,null,0,null,null,null,null,"宝石",null,null,null,0,null,"宝箱",null,null,null,0,null,null,null,null,"宝石",null,null,null,0,null,"宝箱",null,null,null,0,null,null,null,null,"宝石",null,null,null,0,null,"宝箱",null,null,null,0]
[null,"プレイヤー人数",null,null,null,null,null,null,"人",null,null,null,null,null,null,null,null,null,null,null,null,null,"薬草",null,null,null,0,null,null,null,null,null,null,null,null,null,null,"薬草",null,null,null,0,null,null,null,null,null,null,null,null,null,null,"薬草",null,null,null,0,null,null,null,null,null,null,null,null,null,null,"薬草",null,null,null,0,null,null,null,null,null,null,null,null,null,null,"薬草",null,null,null,0]
[]
[]
[null,"その他メモ",null,null,null,null,null,null,null,null,null,null,null,null,null,null,null,null,null,null,null,null,"※入力が必要なセルは青くなっています。セルをクリックするとプルダウンメニューが現れるので、そこから項目を選んで下さい(・ω・)ﾉｼ"]
[null,null,null,null,null,null,null,null,null,null,null,null,null,null,null,null,null,null,null,null,null,null,"※キャラクターシートは参加人数に応じてコピーしてご用意ください。その場合、顔表示が少しおかしくなるので手動で絵を差し替えていただければ幸いです。"]
[null,null,null,null,null,null,null,null,null,null,null,null,null,null,null,null,null,null,null,null,null,null,"※重さメモ"]
[null,null,null,null,null,null,null,null,null,null,null,null,null,null,null,null,null,null,null,null,null,null,"金貨＠１",null,null,null,null,null,"食料＠５"]
[null,null,null,null,null,null,null,null,null,null,null,null,null,null,null,null,null,null,null,null,null,null,"回復薬＠３",null,null,null,null,null,"けむり玉＠５"]
[null,"※数字タイルは必要に応じてご活用ください",null,null,null,null,null,null,null,null,null,null,null,null,null,null,null,null,null,null,null,null,"たいまつ＠３",null,null,null,null,null,"ちしきの本＠３"]
[null,null,null,null,null,null,null,null,null,null,null,null,null,null,null,null,null,null,null,null,null,null,"まほうの粉＠１",null,null,null,null,null,"幸運の石＠１"]
[null,null,null,null,null,null,null,null,null,null,null,null,null,null,null,null,null,null,null,null,null,null,"宝石＠１",null,null,null,null,null,"宝箱＠１０"]

{"sheet":"冒険の書","index":1,"n_rows":126,"n_cols":11,"rows_kept":126,"cut":false,"hidden":false,"merged":[[3,2,3,5],[11,2,11,5],[11,7,11,9],[11,11,11,12],[12,2,12,5],[12,7,12,9],[12,11,12,12],[7,2,7,5],[5,6,5,12],[7,6,7,12],[10,2,10,5],[10,7,10,9],[10,11,10,12],[9,2,9,12],[5,2,5,5],[6,2,6,5],[4,2,4,5],[6,6,6,12],[4,6,4,12],[15,2,15,5],[15,7,15,9],[15,11,15,12],[18,2,19,12],[17,2,17,12],[21,2,21,12],[13,2,13,5],[13,7,13,9],[13,11,13,12],[14,2,14,5],[14,7,14,9],[14,11,14,12],[32,2,32,5],[32,6,32,12],[33,2,33,5],[33,6,33,12],[35,2,35,12],[36,2,36,5],[36,7,36,9],[36,11,36,12],[22,2,24,12],[29,2,29,5],[30,2,30,5],[30,6,30,12],[31,2,31,5],[31,6,31,12],[39,2,39,5],[39,7,39,9],[39,11,39,12],[40,2,40,5],[40,7,40,9],[40,11,40,12],[37,2,37,5],[37,7,37,9],[37,11,37,12],[38,2,38,5],[38,7,38,9],[38,11,38,12],[48,2,50,12],[55,2,55,5],[56,2,56,5],[56,6,56,12],[57,2,57,5],[57,6,57,12],[41,2,41,5],[41,7,41,9],[41,11,41,12],[43,2,43,12],[44,2,45,12],[47,2,47,12],[63,2,63,5],[63,7,63,9],[63,11,63,12],[64,2,64,5],[64,7,64,9],[64,11,64,12],[58,2,58,5],[58,6,58,12],[59,2,59,5],[59,6,59,12],[61,2,61,12],[62,2,62,5],[62,7,62,9],[62,11,62,12],[67,2,67,5],[67,7,67,9],[67,11,67,12],[69,2,69,12],[70,2,71,12],[73,2,73,12],[65,2,65,5],[65,7,65,9],[65,11,65,12],[66,2,66,5],[66,7,66,9],[66,11,66,12],[84,2,84,5],[84,6,84,12],[85,2,85,5],[85,6,85,12],[87,2,87,12],[88,2,88,5],[88,7,88,9],[88,11,88,12],[74,2,76,12],[81,2,81,5],[82,2,82,5],[82,6,82,12],[83,2,83,5],[83,6,83,12],[91,2,91,5],[91,7,91,9],[91,11,91,12],[92,2,92,5],[92,7,92,9],[92,11,92,12],[89,2,89,5],[89,7,89,9],[89,11,89,12],[90,2,90,5],[90,7,90,9],[90,11,90,12],[100,2,102,12],[107,2,107,5],[108,2,108,5],[108,6,108,12],[109,2,109,5],[109,6,109,12],[93,2,93,5],[93,7,93,9],[93,11,93,12],[95,2,95,12],[96,2,97,12],[99,2,99,12],[115,2,115,5],[115,7,115,9],[115,11,115,12],[116,2,116,5],[116,7,116,9],[116,11,116,12],[110,2,110,5],[110,6,110,12],[111,2,111,5],[111,6,111,12],[113,2,113,12],[114,2,114,5],[114,7,114,9],[114,11,114,12],[126,2,128,12],[119,2,119,5],[119,7,119,9],[119,11,119,12],[121,2,121,12],[122,2,123,12],[125,2,125,12],[117,2,117,5],[117,7,117,9],[117,11,117,12],[118,2,118,5],[118,7,118,9],[118,11,118,12]]}
[null,"冒険終了時に書く日記のようなものです。"]
[null,"※冒険書が足りなくなったら、その都度セルをコピーしてご利用ください！"]
[]
[null,null,"【冒険の書】"]
[null,null,"日付："]
[null,null,"冒険回数：",null,null,null,1]
[null,null,"クエスト名：",null,null,null,"7：通常"]
[null,null,"評価：",null,null,null,0]
[]
[null,null,"冒険者名/やくわり/レベル"]
[null,null,null,null,null,null,"/",null,null,null,"/"]
[null,null,null,null,null,null,"/",null,null,null,"/"]
[null,null,null,null,null,null,"/",null,null,null,"/"]
[null,null,null,null,null,null,"/",null,null,null,"/"]
[null,null,null,null,null,null,"/",null,null,null,"/"]
[null,null,null,null,null,null,"/",null,null,null,"/"]
[]
[null,null,"ゲットしたおたから"]
[]
[]
[]
[null,null,"その他感想やメモ"]
[]
[]
[]
[]
[]
[]
[]
[null,null,"【冒険の書】"]
[null,null,"日付："]
[null,null,"冒険回数：",null,null,null,1]
[null,null,"クエスト名：",null,null,null,"7：通常"]
[null,null,"評価：",null,null,null,0]
[]
[null,null,"冒険者名/やくわり/レベル"]
[null,null,null,null,null,null,"/",null,null,null,"/"]
[null,null,null,null,null,null,"/",null,null,null,"/"]
[null,null,null,null,null,null,"/",null,null,null,"/"]
[null,null,null,null,null,null,"/",null,null,null,"/"]
[null,null,null,null,null,null,"/",null,null,null,"/"]
[null,null,null,null,null,null,"/",null,null,null,"/"]
[]
[null,null,"ゲットしたおたから"]
[]
[]
[]
[null,null,"その他感想やメモ"]
[]
[]
[]
[]
[]
[]
[]
[null,null,"【冒険の書】"]
[null,null,"日付："]
[null,null,"冒険回数：",null,null,null,1]
[null,null,"クエスト名：",null,null,null,"7：通常"]
[null,null,"評価：",null,null,null,0]
[]
[null,null,"冒険者名/やくわり/レベル"]
[null,null,null,null,null,null,"/",null,null,null,"/"]
[null,null,null,null,null,null,"/",null,null,null,"/"]
[null,null,null,null,null,null,"/",null,null,null,"/"]
[null,null,null,null,null,null,"/",null,null,null,"/"]
[null,null,null,null,null,null,"/",null,null,null,"/"]
[null,null,null,null,null,null,"/",null,null,null,"/"]
[]
[null,null,"ゲットしたおたから"]
[]
[]
[]
[null,null,"その他感想やメモ"]
[]
[]
[]
[]
[]
[]
[]
[null,null,"【冒険の書】"]
[null,null,"日付："]
[null,null,"冒険回数：",null,null,null,1]
[null,null,"クエスト名：",null,null,null,"7：通常"]
[null,null,"評価：",null,null,null,0]
[]
[null,null,"冒険者名/やくわり/レベル"]
[null,null,null,null,null,null,"/",null,null,null,"/"]
[null,null,null,null,null,null,"/",null,null,null,"/"]
[null,null,null,null,null,null,"/",null,null,null,"/"]
[null,null,null,null,null,null,"/",null,null,null,"/"]
[null,null,null,null,null,null,"/",null,null,null,"/"]
[null,null,null,null,null,null,"/",null,null,null,"/"]
[]
[null,null,"ゲットしたおたから"]
[]
[]
[]
[null,null,"その他感想やメモ"]
[]
[]
[]
[]
[]
[]
[]
[null,null,"【冒険の書】"]
[null,null,"日付："]
[null,null,"冒険回数：",null,null,null,1]
[null,null,"クエスト名：",null,null,null,"7：通常"]
[null,null,"評価：",null,null,null,0]
[]
[null,null,"冒険者名/やくわり/レベル"]
[null,null,null,null,null,null,"/",null,null,null,"/"]
[null,null,null,null,null,null,"/",null,null,null,"/"]
[null,null,null,null,null,null,"/",null,null,null,"/"]
[null,null,null,null,null,null,"/",null,null,null,"/"]
[null,null,null,null,null,null,"/",null,null,null,"/"]
[null,null,null,null,null,null,"/",null,null,null,"/"]
[]
[null,null,"ゲットしたおたから"]
[]
[]
[]
[null,null,"その他感想やメモ"]

{"sheet":"使い方マニュアル","index":2,"n_rows":81,"n_cols":6,"rows_kept":81,"cut":false,"hidden":false,"merged":[]}
[]
["メイン画面説明"]
[null,null,null,null,null,"１：クリックするとサイコロを２つ振ることができます。"]
[null,null,null,null,null,"1つだけ振る必要があるときは左の数値を、2個同時の時は両方の数字を参照ください。"]
[null,null,null,null,null,"時折エラーが出ることがありますが、その場合は一旦終了して、再度ボタンをクリックしてください。"]
[]
[null,null,null,null,null,"２：クエストの設定を行います"]
[]
[null,null,null,null,null,"３：モンスターが出現した場合、名前を選択すると画像、攻撃力、体力も表示されます。"]
[null,null,null,null,null,"一番右の四角いセルは与えたダメージをメモしておく場所です。"]
[]
[null,null,null,null,null,"４：マップ部分です。⑤のタイルをコピーして配置します。"]
[null,null,null,null,null,"タイル画像をクリックすると緑色の●が表示されるので、そこをドラッグ＆ドロップすることで回転も可能です。"]
[]
[]
[]
[null,null,null,null,null,"５：マップに配置するタイル置き場です。"]
[]
[null,null,null,null,null,"６：ゲーム開始時に人数を設定しておくセルです。人数により、一部モンスターの体力が変化します。"]
[]
[null,null,null,null,null,"７：扉や商人などがイベントで発生した場合などに使うタイルです。"]
[null,null,null,null,null,"その他自由にご活用ください。"]
[]
[null,null,null,null,null,"８：キャラクターシートです。詳細は下のキャラクターシート説明で。"]
[]
[]
[]
["キャラクターシート説明"]
[null,null,null,null,null,"１：なまえ、やくわり、レベルなどを入力します。"]
[null,null,null,null,null,"やくわりやレベルに応じた たいりょく、とくぎなどは自動に入力されます。"]
[]
[null,null,null,null,null,"２：装備などで増えた　たいりょくを入力します。合計体力は自動的に表示されます。"]
[]
[null,null,null,null,null,"３：受けたダメージ、得たけいけん等をメモしておくセルです。"]
[]
[null,null,null,null,null,"４：部分別たいりょくです。最大値は自動入力されますが"]
[null,null,null,null,null,"ダメージはその都度ご自身で記入してください。"]
[]
[null,null,null,null,null,"５：空腹度、疲労度を記入するセルです。"]
[]
[null,null,null,null,null,"６：冒険中で特殊なとくぎを覚えた場合、ここに入力してください。"]
[]
[null,null,null,null,null,"７：武器、防具、指輪などの装備品を記入するセルです。"]
[]
[null,null,null,null,null,"８：各種持ち物を記入するセルです。重さは自動で計算されます。"]
[]
[]
[]
[]
[]
[]
[]
[]
[]
[]
[]
[]
[]
[]
[]
[]
[]
[]
["初期セットアップ"]
[null,"基本的にルールブックを参照して記入していきます。"]
[null,"大きく分けると、以下の３つですね。"]
[null,"・キャラクター情報の記入"]
[null,"やくわりと所持金貨を決定し、買い物を済ませてください。"]
[null,"・クエスト、危険な冒険（必要に応じて）の設定"]
[null,"・地図上の好きな場所に十字路を配置"]
[]
[]
[]
[]
["その他"]
[null,"レベルや受けたダメージなど数値を入力する部分は十分な値を用意していますが、それを超える値が必要に案った場合、手動で再設定が可能です。"]
[null,"DATAタブのBセルに数字列が格納されているので、すきなだけ値を増やし"]
[null,"セルを選択しエクセルの【データ】→【データの入力規則】から、元の値の範囲を広げてください。"]
[null,"詳しくはエクセルのマニュアルなどを参照ください。"]
[]
[null,"その他不明点などありましたら、かどさんのゲーム屋さんまで質問のメールをお願いいたします！(｀･ω･´)ゞ"]

{"sheet":"DATA","index":3,"n_rows":305,"n_cols":21,"rows_kept":305,"cut":false,"hidden":false,"merged":[]}
[]
[null,"※このシートはデータ類です！　いじると表示が変になるので触らないでね(・ω・)ﾉｼ"]
[]
[null,"数字",null,"やくわり",null,null,"とくぎ","特殊なとくぎ","武器","防具","指輪","さいころ",null,null,null,null,null,"クエスト","危険な冒険"]
[null,0,0,"せんし",null,null,"えんごこうげき1",null,"素手","防具なし","なし",null,null,null,null,null,null,null,"０：設定なし（通常の冒険）",null,"ボスモンスター（※１）を倒します。 倒した時点でクリアです\n報酬：最も高いボスの（こうげきりょく＋たいりょく）×２\n高評価：報酬が３６以上"]
[null,1,5,"そうりょ",null,null,"えんごこうげき2","かばう","剣：たいりょく＋５","ローブ：たいりょく＋３","指輪＋１",null,null,null,null,null,null,null,"１：危険地帯 \n全てのモンスターの\nこうげきりょく＋たいりょくが２倍\n報酬で得られる「けいけん」が２倍  ",null,"6種類の地形（直線は扉ありと無し、同じとします）のうち、任意の１つを選びます。その地形をできるだけ多く発見するのが目的です\n報酬：発見した地形×５\n高評価：報酬が２５以上"]
[null,2,10,"まほうつかい",null,null,"かいふく1","いのちのオーラ","棍棒：攻撃成功後にたいりょくを-５して ＋１ダメージすることが可能","皮の鎧：たいりょく＋５","指輪＋２",null,null,null,null,null,null,null,"２：超危険地帯\n全てのモンスターの\nこうげきりょく＋たいりょくが３倍\n報酬で得られる「けいけん」が３倍  ",null,"モンスターをできるだけ多く倒します。\n種類は問いません\n報酬：モンスターを倒した数\n高評価：報酬が２０以上"]
[null,3,15,"にんじゃ",null,null,"まほう1","だいまほう","槍：相打ち時のダメージ-1","鎖かたびら：たいりょく＋８","指輪＋３",null,null,null,null,null,null,null,"３：呪われた迷宮\n呪いの効果で回復薬を使用しても 「たいりょく」が回復しません。\n報酬で得られる「けいけん」が３倍  ",null,"お金を一定量稼ぎます\n報酬：稼いだ金貨数÷１０（端数切り上げ）\n高評価：報酬が２５以上"]
[null,4,20,"かりうど",null,null,"おたから1","しゅうちゅう","斧：受けるダメージ＋２、与えるダメージ＋１","鉄の鎧：たいりょく＋１０","指輪＋４",null,null,null,null,null,null,null,"４：極寒の迷宮\n「たいりょく」の上限が半分（端数切り上げ）になり、食糧が倍消費します。\n報酬で得られる「けいけん」が２倍  ",null,"まずは２Dで特定のモンスターを決定します。\nそのモンスターを、できるだけ多く倒すのが\n目的です\n報酬：モンスターを倒した数×６\n高評価：報酬が３０以上"]
[null,5,25,"非表示",null,null,"かぎあけ1","ひっさつのいちげき","杖：たいりょく＋５","魔法のローブ：たいりょく＋６","指輪＋５",null,null,null,null,null,null,null,"５：灼熱の迷宮\n１歩歩くごとに 全員の「たいりょく」が１減少します。\n報酬で得られる「けいけん」が２倍  ",null,"自由に探索します （但し、３マス以上進むことが条件です）\n報酬：生還で１人あたり５\n高評価：なし"]
[null,6,30,null,null,null,"かいりき",null,"弓：えんごこうげきを体力-１で使える","魔法の皮の鎧：たいりょく＋１０",null,null,null,null,null,null,null,null,"６：神聖な場所\n全ての武器、防具が使えません。 戦闘は「素手」になります。\n報酬で得られる「けいけん」が２倍  ",null,"迷宮を全て歩きます。\n報酬：進んだ地形×１\n高評価：報酬が２３以上"]
[null,7,35,null,null,null,"かいふく2",null,"短剣：反撃…時のダメージ-1","魔法の鎖かたびら：たいりょく＋１６",null,null,null,null,null,null,null,null,null,null,"まずは２Dで特定のモンスターを決定します。 この冒険では、そのモンスターを倒してはいけません\n報酬：進んだ地形×２。 但し、倒したモンスター×５だけマイナス\n高評価：報酬が４０以上"]
[null,8,40,null,null,null,"まほう2",null,"魔法の剣：たいりょく＋５、あたえるダメージ＋１","魔法の鉄の鎧：たいりょく＋２０",null,null,null,null,null,null,null,null,null,null,"宝箱をできるだけ多く回収します。\n中は開けても構いません\n報酬：回収した宝箱×４\n高評価：報酬が２４以上"]
[null,9,45,null,null,null,"おたから2",null,"魔法の棍棒：攻撃成功後にたいりょくを-５して ＋１ダメージすることが可能、あたえるダメージ＋１","盾なし",null,null,null,null,null,null,null,null,null,null,"全員で一定量ダメージを受ける\n報酬：受けたダメージ/２（端数切り上げ）\n高評価：報酬が５０以上"]
[null,10,50,null,null,null,"かぎあけ2",null,"魔法の槍：相打ち時のダメージ-1、あたえるダメージ＋１","盾：たいりょく＋３",null,null,null,null,null,null,null,null,null,null,"指輪をできるだけ多く入手します\n報酬：回収した指輪×１０\n高評価：報酬が４０以上"]
[null,11,55,null,null,null,null,null,"魔法の斧：受けるダメージ＋２、与えるダメージ＋１、あたえるダメージ＋１","魔法の盾：たいりょく＋６",null,null,"モンスター",null,"攻撃","体力","体力計算用"]
[null,12,60,null,null,null,null,null,"魔法の杖：たいりょく＋５、あたえるダメージ＋１",null,null,null,"なし",null,0,0]
[null,13,65,null,null,null,null,null,"魔法の弓：えんごこうげきを体力-１で使える、あたえるダメージ＋１",null,null,null,"ドラゴン",null,6,{"$f":"地図!G37*2","v":2},null,"2：ボスの討伐","ボスモンスター（※１）を倒します。 倒した時点でクリアです\n報酬：最も高いボスの（こうげきりょく＋たいりょく）×２  高評価：報酬が３６以上"]
[null,14,70,null,null,null,null,null,"魔法の短剣：反撃…時のダメージ-1、あたえるダメージ＋１",null,null,null,"ヴァンパイア",null,5,{"$f":"地図!G37+1","v":2},null,"3：特定の地形を発見","6種類の地形（直線は扉ありと無し、同じとします）のうち、任意の１つを選びます。その地形をできるだけ多く発見するのが目的です\n報酬：発見した地形×５  高評価：報酬が２５以上"]
[null,15,75,null,null,null,null,null,null,null,null,null,"オーガ",null,6,{"$f":"ROUNDUP(Q20,0)","v":1},{"$f":"地図!G37/2","v":0.5},"4：モンスター討伐","モンスターをできるだけ多く倒します。\n種類は問いません\n報酬：モンスターを倒した数  高評価：報酬が２０以上"]
[null,16,80,null,null,null,null,null,null,null,null,null,"サラマンダー",null,3,2,null,"5：財宝の回収","お金を一定量稼ぎます\n報酬：稼いだ金貨数÷１０（端数切り上げ）  高評価：報酬が２５以上"]
[null,17,85,null,null,null,null,null,null,null,null,null,"スケルトン",null,2,2,null,"6：特定モンスターを退治","最初に２Dで特定のモンスターを決定し、そのモンスターを多く倒すのが目的です。\n報酬：モンスターを倒した数×６  高評価：報酬が３０以上"]
[null,18,90,null,null,null,null,null,null,null,null,null,"ゴブリン",null,2,1,null,"7：通常","自由に探索します （但し、３マス以上進むことが条件です）\n報酬：生還で１人あたり５  高評価：なし"]
[null,19,95,null,null,null,null,null,null,null,null,null,"ゴースト",null,2,{"$f":"地図!G37","v":1},null,"8：探索","迷宮を全て歩きます。\n報酬：進んだ地形×１  高評価：報酬が２３以上"]
[null,20,100,null,null,null,null,null,null,null,null,null,"ケイブベア",null,4,2,null,"9：特定のモンスター調査","２Dで特定のモンスターを決定します。 この冒険では、そのモンスターを倒してはいけません\n報酬：進んだ地形×２-倒した特定のﾓﾝｽﾀｰ×５  高評価：報酬４０以上"]
[null,21,null,null,null,null,null,null,null,null,null,null,"サイクロプス",null,4,{"$f":"ROUNDUP(Q26,0)","v":1},{"$f":"地図!G37/2","v":0.5},"10：宝箱の回収","宝箱をできるだけ多く回収します。\n中は開けても構いません\n報酬：回収した宝箱×４  高評価：報酬が２４以上"]
[null,22,null,null,null,null,null,null,null,null,null,null,"ネクロマンサー",null,5,{"$f":"地図!G37","v":1},null,"11：負傷テスト","全員で一定量ダメージを受ける\n報酬：受けたダメージ/２（端数切り上げ）  高評価：報酬が５０以上"]
[null,23,null,null,null,null,null,null,null,null,null,null,"デーモン",null,6,{"$f":"地図!G37+1","v":2},null,"12：指輪の探索","指輪をできるだけ多く入手します\n報酬：回収した指輪×１０  高評価：報酬が４０以上"]
[null,24]
[null,25]
[null,26]
[null,27]
[null,28]
[null,29]
[null,30]
[null,31]
[null,32]
[null,33]
[null,34]
[null,35]
[null,36]
[null,37]
[null,38]
[null,39]
[null,40]
[null,41]
[null,42]
[null,43]
[null,44]
[null,45]
[null,46]
[null,47]
[null,48]
[null,49]
[null,50]
[null,51]
[null,52]
[null,53]
[null,54]
[null,55]
[null,56]
[null,57]
[null,58]
[null,59]
[null,60]
[null,61]
[null,62]
[null,63]
[null,64]
[null,65]
[null,66]
[null,67]
[null,68]
[null,69]
[null,70]
[null,71]
[null,72]
[null,73]
[null,74]
[null,75]
[null,76]
[null,77]
[null,78]
[null,79]
[null,80]
[null,81]
[null,82]
[null,83]
[null,84]
[null,85]
[null,86]
[null,87]
[null,88]
[null,89]
[null,90]
[null,91]
[null,92]
[null,93]
[null,94]
[null,95]
[null,96]
[null,97]
[null,98]
[null,99]
[null,100]
[null,101]
[null,102]
[null,103]
[null,104]
[null,105]
[null,106]
[null,107]
[null,108]
[null,109]
[null,110]
[null,111]
[null,112]
[null,113]
[null,114]
[null,115]
[null,116]
[null,117]
[null,118]
[null,119]
[null,120]
[null,121]
[null,122]
[null,123]
[null,124]
[null,125]
[null,126]
[null,127]
[null,128]
[null,129]
[null,130]
[null,131]
[null,132]
[null,133]
[null,134]
[null,135]
[null,136]
[null,137]
[null,138]
[null,139]
[null,140]
[null,141]
[null,142]
[null,143]
[null,144]
[null,145]
[null,146]
[null,147]
[null,148]
[null,149]
[null,150]
[null,151]
[null,152]
[null,153]
[null,154]
[null,155]
[null,156]
[null,157]
[null,158]
[null,159]
[null,160]
[null,161]
[null,162]
[null,163]
[null,164]
[null,165]
[null,166]
[null,167]
[null,168]
[null,169]
[null,170]
[null,171]
[null,172]
[null,173]
[null,174]
[null,175]
[null,176]
[null,177]
[null,178]
[null,179]
[null,180]
[null,181]
[null,182]
[null,183]
[null,184]
[null,185]
[null,186]
[null,187]
[null,188]
[null,189]
[null,190]
[null,191]
[null,192]
[null,193]
[null,194]
[null,195]
[null,196]
[null,197]
[null,198]
[null,199]
[null,200]
[null,201]
[null,202]
[null,203]
[null,204]
[null,205]
[null,206]
[null,207]
[null,208]
[null,209]
[null,210]
[null,211]
[null,212]
[null,213]
[null,214]
[null,215]
[null,216]
[null,217]
[null,218]
[null,219]
[null,220]
[null,221]
[null,222]
[null,223]
[null,224]
[null,225]
[null,226]
[null,227]
[null,228]
[null,229]
[null,230]
[null,231]
[null,232]
[null,233]
[null,234]
[null,235]
[null,236]
[null,237]
[null,238]
[null,239]
[null,240]
[null,241]
[null,242]
[null,243]
[null,244]
[null,245]
[null,246]
[null,247]
[null,248]
[null,249]
[null,250]
[null,251]
[null,252]
[null,253]
[null,254]
[null,255]
[null,256]
[null,257]
[null,258]
[null,259]
[null,260]
[null,261]
[null,262]
[null,263]
[null,264]
[null,265]
[null,266]
[null,267]
[null,268]
[null,269]
[null,270]
[null,271]
[null,272]
[null,273]
[null,274]
[null,275]
[null,276]
[null,277]
[null,278]
[null,279]
[null,280]
[null,281]
[null,282]
[null,283]
[null,284]
[null,285]
[null,286]
[null,287]
[null,288]
[null,289]
[null,290]
[null,291]
[null,292]
[null,293]
[null,294]
[null,295]
[null,296]
[null,297]
[null,298]
[null,299]
[null,300]